bitfinex/quotes_BTCUSD_20220111
["timestamp","ask_amount","ask_price","bid_price","bid_amount"]
[1641913830676,0.29712863,41949.0,41941.0,0.59705266]
[1641913830869,0.29712863,41949.0,41941.0,0.25869349]
[1641913831269,0.059629,41947.0,41941.0,0.25869349]
[1641913831468,0.41879099,41947.0,41941.0,0.25869349]
[1641913831668,0.00126416,41945.0,41941.0,0.25869349]
[1641913831968,0.29056153,41943.0,41941.0,0.25869349]
[1641913832168,0.34056153,41943.0,41942.0,0.00072109]
[1641913832369,1.72620253,41943.0,41942.0,0.00072109]
[1641913832668,2.24999138,41943.0,41942.0,0.00072109]
[1641913832869,2.576,41942.0,41941.0,0.25869349]
[1641913833075,2.676,41942.0,41941.0,0.25869349]
[1641913833273,2.67728149,41942.0,41941.0,0.24233867]
[1641913833469,0.00122662,41939.0,41938.0,0.0210645]
[1641913833668,0.00122662,41939.0,41929.0,0.90972937]
[1641913833670,1.276,41938.0,41929.0,0.90972937]
[1641913833870,1.395306,41935.0,41929.0,1.22916192]
[1641913834068,0.219306,41935.0,41929.0,0.31943255]
[1641913834313,0.269306,41935.0,41929.0,0.31943255]
[1641913834616,0.269306,41935.0,41929.0,0.31443255]
[1641913834617,1.276,41934.0,41929.0,0.31443255]
[1641913835016,0.059653,41934.0,41930.0,0.31786122]
[1641913835215,0.05,41935.0,41930.0,0.43715064]
[1641913835414,0.01238974,41937.0,41930.0,0.43715064]
[1641913835617,0.01238974,41937.0,41930.0,0.37750164]
[1641913835817,0.00051523,41936.0,41930.0,0.06036845]
[1641913836014,0.00051523,41936.0,41930.0,0.00072803]
[1641913836015,0.31281065,41935.0,41930.0,0.00072803]
[1641913836215,1.276,41932.0,41930.0,0.00072803]
[1641913836414,1.3,41931.0,41920.0,0.01005351]
[1641913836616,1.3,41931.0,41921.0,0.01091271]
[1641913836617,0.059672,41927.0,41921.0,0.01091271]
[1641913836816,0.35,41924.0,41921.0,0.01091271]
[1641913837015,0.30776233,41923.0,41921.0,0.01091268]
[1641913837216,0.8,41921.0,41920.0,0.01005351]
[1641913837415,1.00121428,41921.0,41920.0,0.01005351]
[1641913837617,0.95121428,41921.0,41920.0,0.01005351]
[1641913837817,2.07546571,41921.0,41920.0,0.01005351]
[1641913838268,2.07671716,41921.0,41920.0,0.01005351]
[1641913838473,2.07671716,41921.0,41916.0,0.0207521]
[1641913838474,1.32225514,41920.0,41916.0,0.0207521]
[1641913838670,1.42225514,41920.0,41916.0,0.0207521]
[1641913838871,0.00127003,41917.0,41916.0,0.0207521]
[1641913839271,1.6338731,41917.0,41916.0,0.02147623]
[1641913839471,1.6338731,41917.0,41912.0,0.0287904]
[1641913839472,0.909691,41916.0,41912.0,0.0287904]
[1641913839672,1.276,41915.0,41912.0,0.0287904]
[1641913839874,0.00124799,41913.0,41912.0,0.0287904]
[1641913840073,1.27724799,41913.0,41912.0,0.0287904]
[1641913840273,1.27724799,41913.0,41912.0,0.0237904]
[1641913840573,0.60124799,41913.0,41912.0,0.0237904]
[1641913841172,0.90124799,41913.0,41912.0,0.0094904]
[1641913841373,0.60124799,41913.0,41912.0,0.0094904]
[1641913841573,1.25964284,41913.0,41912.0,0.0094904]
[1641913841815,2.53885725,41913.0,41912.0,0.0094904]
[1641913843219,2.53885725,41913.0,41910.0,0.00085455]
[1641913843220,0.55969,41912.0,41910.0,0.00085455]
[1641913843419,1.276,41911.0,41910.0,0.00085455]
[1641913843622,1.376,41911.0,41910.0,0.00085455]
[1641913843819,1.426,41911.0,41910.0,0.00085455]
[1641913844218,1.426,41911.0,41908.0,0.00085458]
[1641913844421,0.059687,41910.0,41908.0,0.00085458]
[1641913844720,0.0136405,41913.0,41908.0,0.00129028]
[1641913844721,0.01239251,41913.0,41908.0,0.00129028]
[1641913845319,0.01239251,41913.0,41905.0,0.77498135]
[1641913845571,0.07207151,41913.0,41905.0,0.71530297]
[1641913845864,0.12207151,41913.0,41905.0,0.71530297]
[1641913846267,0.36138636,41910.0,41905.0,0.71530297]
[1641913846665,0.41138636,41910.0,41908.0,0.119343]
[1641913847065,0.06239251,41913.0,41908.0,0.119343]
[1641913847466,0.01239251,41913.0,41908.0,0.119343]
[1641913847667,0.5,41910.0,41908.0,0.119343]
[1641913847969,0.5,41910.0,41898.0,1.57415465]
[1641913847970,0.91018775,41910.0,41901.0,0.75697802]
[1641913848168,0.059685,41906.0,41901.0,0.42]
[1641913848368,0.059685,41906.0,41901.0,0.479682]
[1641913848569,0.5,41905.0,41901.0,0.479682]
[1641913848773,0.55,41905.0,41903.0,0.105066]
[1641913849169,0.55,41905.0,41903.0,0.16474597]
[1641913849617,0.55,41905.0,41903.0,0.15474597]
[1641913850219,0.45518889,41905.0,41903.0,0.15474597]
[1641913850620,0.45518889,41905.0,41903.0,0.44369628]
[1641913850817,0.45518889,41905.0,41903.0,0.91283554]
[1641913851019,0.45518889,41905.0,41903.0,0.56420526]
[1641913851322,0.45518889,41905.0,41903.0,0.095066]
[1641913851519,0.60518889,41905.0,41903.0,0.095066]
[1641913851719,0.38014308,41904.0,41900.0,2.00077874]
[1641913851924,0.38014308,41904.0,41900.0,1.52310874]
[1641913851925,0.0012427,41901.0,41900.0,1.52310874]
[1641913852121,1.2951427,41901.0,41900.0,1.51120874]
[1641913852320,2.03501648,41901.0,41900.0,1.50620874]
[1641913852518,2.03501648,41901.0,41900.0,1.0292264]
[1641913852519,2.19472648,41901.0,41900.0,1.0292264]
[1641913852818,3.47072648,41901.0,41900.0,1.02844766]
[1641913853070,3.97072648,41901.0,41900.0,1.02844766]
[1641913853266,4.32072648,41901.0,41900.0,1.02844766]
[1641913853466,0.85,41900.0,41898.0,0.93822731]
[1641913853666,2.4711231,41899.0,41898.0,0.82702878]
[1641913853869,1.15,41897.0,41889.0,0.00273129]
[1641913854066,0.00127866,41890.0,41889.0,0.00273129]
[1641913854266,1.34517866,41890.0,41889.0,0.00273129]
[1641913854467,0.04517866,41890.0,41889.0,0.00273129]
[1641913854868,0.89517866,41890.0,41889.0,0.00273129]
[1641913855067,1.39517866,41890.0,41881.0,0.008]
[1641913855469,1.17393971,41889.0,41881.0,0.008]
[1641913855670,1.52406806,41889.0,41881.0,0.008]
[1641913855869,0.85,41888.0,41881.0,0.008]
[1641913856071,0.5,41886.0,41881.0,0.008]
[1641913856292,1.276,41885.0,41881.0,0.01087427]
[1641913856473,0.04511559,41884.0,41881.0,0.01087427]
[1641913856920,1.64602747,41883.0,41881.0,0.01087427]
[1641913857119,0.5,41882.0,41881.0,0.01087427]
[1641913857319,0.79878284,41882.0,41881.0,0.01087427]
[1641913857520,2.21868284,41882.0,41881.0,0.008]
[1641913857721,0.94268284,41882.0,41881.0,0.008]
[1641913857919,1.72451277,41882.0,41881.0,0.008]
[1641913858320,1.05,41881.0,41877.0,0.11681852]
[1641913858521,1.276,41878.0,41874.0,0.00287451]
[1641913858720,1.276,41878.0,41873.0,0.00286121]
[1641913858721,0.5,41875.0,41873.0,0.00286121]
[1641913858922,0.0439,41874.0,41873.0,0.00286121]
[1641913859124,0.55,41875.0,41874.0,1.4147]
[1641913859125,0.494,41875.0,41874.0,1.4147]
[1641913859322,0.05,41882.0,41874.0,1.4147]
[1641913859521,0.05,41882.0,41876.0,0.1197]
[1641913859722,0.5,41881.0,41878.0,0.24260607]
[1641913859922,0.05,41882.0,41880.0,0.3008225]
[1641913860124,0.05,41882.0,41877.0,0.6131626]
[1641913860321,0.05,41882.0,41877.0,0.67287795]
[1641913861071,0.05,41882.0,41877.0,0.61355513]
[1641913861672,0.05,41882.0,41877.0,0.17980553]
[1641913862268,0.05,41882.0,41877.0,0.18018925]
[1641913862473,0.20046,41884.0,41878.0,0.3459393]
[1641913862670,0.5,41892.0,41884.0,0.059702]
[1641913863068,0.5,41892.0,41886.0,0.05969857]
[1641913863470,0.00076558,41894.0,41887.0,0.38697983]
[1641913863673,0.00076558,41894.0,41888.0,0.0597]
[1641913863871,0.00076558,41894.0,41891.0,0.25826076]
[1641913864180,0.00076558,41894.0,41891.0,0.31795898]
[1641913864424,0.0999,41897.0,41895.0,0.00124632]
[1641913864626,0.0001,41897.0,41896.0,1.67033174]
[1641913865023,0.7,41909.0,41906.0,0.57063988]
[1641913865224,0.2,41909.0,41906.0,0.26190189]
[1641913865422,0.2,41909.0,41906.0,0.32156541]
[1641913865824,0.2,41909.0,41906.0,0.71845507]
[1641913866024,0.5,41907.0,41904.0,0.119345]
[1641913866225,0.5,41907.0,41892.0,0.30246281]
[1641913866226,0.00125806,41905.0,41892.0,0.30246281]
[1641913866424,0.2,41909.0,41898.0,0.1]
[1641913866425,0.03928048,41904.0,41898.0,0.1]
[1641913866625,0.2,41909.0,41903.0,0.0596777]
[1641913866828,0.5,41921.0,41900.0,0.11935539]
[1641913866829,0.5,41921.0,41905.0,1.3]
[1641913867226,0.32032743,41919.0,41908.0,0.32900864]
[1641913867827,0.05,41918.0,41908.0,0.32900864]
[1641913868084,0.059676,41913.0,41908.0,0.32900864]
[1641913868276,0.059676,41913.0,41908.0,0.44835164]
[1641913868877,0.059676,41913.0,41908.0,0.119343]
[1641913869077,0.26533451,41912.0,41900.0,0.995]
[1641913869278,0.059688,41906.0,41900.0,0.99252073]
[1641913869482,0.28559817,41905.0,41901.0,0.119364]
[1641913869678,0.00128236,41904.0,41898.0,0.1197]
[1641913870277,0.05,41905.0,41898.0,0.1197]
[1641913870280,0.05,41905.0,41900.0,0.05969]
[1641913870483,0.01239251,41906.0,41900.0,0.05969]
[1641913870684,0.00125638,41912.0,41902.0,0.1]
[1641913870880,0.00719142,41922.0,41915.0,0.28004994]
[1641913870881,0.20094,41918.0,41915.0,0.28004994]
[1641913871181,0.001,41925.0,41916.0,0.47137627]
[1641913871382,0.001,41925.0,41919.0,0.059659]
[1641913871383,0.33925966,41925.0,41919.0,0.059659]
[1641913871581,0.33925966,41925.0,41916.0,0.328407]
[1641913871582,0.5021,41924.0,41916.0,0.328407]
[1641913871819,0.5021,41924.0,41915.0,0.11931038]
[1641913872023,0.0021,41924.0,41915.0,0.11931038]
[1641913872319,0.00269871,41924.0,41915.0,0.11931038]
[1641913872522,0.059662,41922.0,41918.0,0.119318]
[1641913872720,0.00269871,41924.0,41904.0,0.3009]
[1641913872721,0.00122474,41920.0,41904.0,0.3009]
[1641913872922,0.20088,41923.0,41914.0,0.27384775]
[1641913873121,0.00126012,41922.0,41914.0,0.27384775]
[1641913873622,0.00185882,41922.0,41914.0,0.39317575]
[1641913873821,0.05185882,41922.0,41914.0,0.27384775]
[1641913874023,0.0505987,41922.0,41916.0,0.059656]
[1641913874223,0.0005987,41922.0,41921.0,0.403256]
[1641913874422,0.0005987,41922.0,41917.0,0.39621827]
[1641913874625,0.0021,41924.0,41917.0,0.39621827]
[1641913874626,0.00059868,41920.0,41917.0,0.39621827]
[1641913875122,0.00059868,41920.0,41918.0,0.119316]
[1641913875322,0.00059868,41920.0,41919.0,0.45813382]
[1641913875576,0.00059868,41920.0,41919.0,0.45313382]
[1641913875971,0.00067458,41921.0,41919.0,0.45313382]
[1641913876173,0.00067458,41921.0,41920.0,0.27509454]
[1641913876373,0.00067458,41921.0,41919.0,0.51279082]
[1641913876572,0.00067458,41921.0,41919.0,0.059657]
[1641913876975,0.00057728,41923.0,41919.0,0.059657]
[1641913877375,0.65,41922.0,41908.0,0.11933727]
[1641913877575,0.05,41916.0,41913.0,0.39079172]
[1641913877874,0.05,41917.0,41913.0,0.39079172]
[1641913878074,0.05,41917.0,41915.0,0.119316]
[1641913878274,0.00057727,41921.0,41915.0,0.119316]
[1641913878474,0.00057727,41921.0,41917.0,0.05965786]
[1641913879559,0.00122012,41918.0,41911.0,0.119332]
[1641913879758,0.00122012,41918.0,41905.0,0.9453]
[1641913879759,0.059676,41916.0,41905.0,0.9453]
[1641913879955,0.059686,41912.0,41905.0,0.9453]
[1641913880156,0.05,41916.0,41900.0,0.33586076]
[1641913880356,0.00122947,41917.0,41908.0,0.26944668]
[1641913880558,0.00122947,41917.0,41909.0,0.74020972]
[1641913880756,0.00057228,41913.0,41911.0,0.45396904]
[1641913881458,0.70676312,41920.0,41913.0,1.3]
[1641913881657,0.70676312,41920.0,41915.0,0.05964]
[1641913881658,0.54476312,41920.0,41915.0,0.05964]
[1641913881957,0.0021,41924.0,41922.0,0.41330064]
[1641913882756,0.0021,41924.0,41922.0,0.41329965]
[1641913882957,0.0021,41924.0,41922.0,0.47294903]
[1641913883571,0.0021,41924.0,41923.0,0.32354542]
[1641913883771,0.0021,41924.0,41922.0,0.47294903]
[1641913883972,0.0021,41924.0,41923.0,0.50191459]
[1641913884172,0.0021,41924.0,41923.0,0.2446166]
[1641913884574,0.0021,41924.0,41923.0,0.5595682]
[1641913885774,0.0963743,41934.0,41923.0,0.5595682]
[1641913885974,0.0963743,41934.0,41932.0,0.3446477]
[1641913886175,0.059649,41933.0,41932.0,0.3446477]
[1641913886822,0.001,41938.0,41929.0,0.60291634]
[1641913887023,0.001,41938.0,41933.0,0.059632]
[1641913887323,0.001,41938.0,41935.0,0.05963188]
[1641913887723,0.35,41937.0,41933.0,0.44493409]
[1641913887922,0.0005686,41936.0,41933.0,0.44493409]
[1641913888323,0.0005686,41936.0,41934.0,0.82456926]
[1641913888723,0.0005686,41936.0,41934.0,0.54996919]
[1641913889124,0.0005686,41937.0,41934.0,0.23852259]
[1641913889327,0.00127316,41936.0,41933.0,0.059629]
[1641913890128,0.60795584,41936.0,41933.0,0.059629]
[1641913890325,0.71759784,41936.0,41933.0,0.059629]
[1641913890577,0.71632468,41936.0,41933.0,0.059629]
[1641913891073,0.75668268,41936.0,41933.0,0.059629]
[1641913891473,0.65668268,41936.0,41933.0,0.059629]
[1641913891671,0.65668268,41936.0,41934.0,0.37460311]
[1641913891872,0.05,41936.0,41934.0,0.37460311]
[1641913892071,0.71688901,41937.0,41933.0,0.059629]
[1641913892273,0.81688901,41937.0,41933.0,0.059629]
[1641913892473,0.11020633,41937.0,41933.0,0.059629]
[1641913892675,0.06020633,41937.0,41933.0,0.059629]
[1641913894323,0.06020633,41937.0,41929.0,0.119292]
[1641913894324,0.36182421,41936.0,41929.0,0.119292]
[1641913894622,0.36182421,41936.0,41918.0,1.0068]
[1641913894623,0.059662,41930.0,41918.0,1.0068]
[1641913894823,0.059662,41930.0,41917.0,0.97391353]
[1641913895022,0.059662,41930.0,41921.0,0.05966072]
[1641913895225,1.67525912,41926.0,41917.0,1.26197745]
[1641913895424,0.119333,41923.0,41918.0,0.11931703]
[1641913895624,0.109667,41922.0,41918.0,0.11931703]
[1641913895821,0.109667,41922.0,41918.0,0.23864303]
[1641913896222,0.109667,41922.0,41919.0,0.059662]
[1641913896424,0.05,41922.0,41920.0,0.05965706]
[1641913896622,0.0439,41926.0,41920.0,0.05965706]
[1641913896623,0.05,41926.0,41920.0,0.48585569]
[1641913896823,0.00056678,41928.0,41925.0,0.3288088]
[1641913897022,0.00056678,41928.0,41927.0,0.47511599]
[1641913897521,0.30056683,41928.0,41925.0,0.3288088]
[1641913897722,0.00056683,41928.0,41926.0,0.31960575]
[1641913897926,0.80708268,41934.0,41926.0,0.37925275]
[1641913898176,0.2004,41934.0,41926.0,0.37925275]
[1641913898576,0.26508619,41931.0,41926.0,0.059647]
[1641913898775,0.37855577,41930.0,41926.0,0.059647]
[1641913898975,0.37855577,41930.0,41927.0,0.05965106]
[1641913898976,0.05,41930.0,41927.0,0.05965106]
[1641913899477,0.2004,41934.0,41926.0,0.059647]
[1641913899478,0.23727727,41929.0,41926.0,0.059647]
[1641913899676,0.41175609,41928.0,41925.0,0.119294]
[1641913899878,0.27846584,41926.0,41925.0,0.119294]
[1641913900077,0.4130483,41928.0,41925.0,0.119294]
[1641913900078,0.4630483,41928.0,41925.0,0.119294]
[1641913900277,0.05129221,41928.0,41925.0,0.119294]
[1641913900485,0.059657,41927.0,41925.0,0.119294]
[1641913900679,0.05129221,41928.0,41925.0,0.119294]
[1641913900680,0.05,41928.0,41925.0,0.119294]
[1641913901080,0.60668268,41929.0,41925.0,0.4040147]
[1641913901281,0.60668268,41929.0,41925.0,0.17893852]
[1641913901480,0.65668268,41929.0,41925.0,0.17893852]
[1641913901924,0.65668268,41929.0,41926.0,0.059646]
[1641913902123,0.65668268,41929.0,41926.0,0.045346]
[1641913902124,0.36326726,41928.0,41926.0,0.045346]
[1641913902425,0.36500539,41927.0,41925.0,0.119294]
[1641913902624,0.36500539,41927.0,41920.0,0.00085449]
[1641913902625,1.37727381,41926.0,41920.0,0.00085449]
[1641913902827,0.00124951,41921.0,41920.0,0.00085449]
[1641913903028,0.94514951,41921.0,41920.0,0.00085449]
[1641913903224,1.24514951,41921.0,41920.0,0.00085449]
[1641913903425,2.15521497,41921.0,41920.0,0.00085445]
[1641913903628,2.25521497,41921.0,41920.0,0.00085445]
[1641913903828,0.85,41920.0,41910.0,0.92101862]
[1641913904028,0.00127864,41911.0,41910.0,0.00341862]
[1641913904332,1.04517864,41911.0,41910.0,0.00341862]
[1641913904528,1.09517864,41911.0,41910.0,0.00341862]
[1641913904725,1.19517864,41911.0,41908.0,0.238621]
[1641913905126,1.25486264,41911.0,41908.0,0.238621]
[1641913905325,0.25486264,41911.0,41908.0,0.238621]
[1641913905594,0.1939,41911.0,41908.0,0.35796532]
[1641913905781,0.0939,41911.0,41908.0,0.35796532]
[1641913906180,0.153578,41911.0,41908.0,0.35796532]
[1641913907082,0.153578,41911.0,41907.0,0.00085459]
[1641913907282,0.001221,41910.0,41907.0,0.00085459]
[1641913907483,0.0439,41909.0,41907.0,0.06054159]
[1641913907980,0.0439,41909.0,41904.0,0.119373]
[1641913907981,0.27717548,41905.0,41904.0,0.119373]
[1641913908187,0.70077518,41905.0,41904.0,0.119373]
[1641913908382,0.70077518,41905.0,41900.0,0.00341893]
[1641913908383,0.75077518,41905.0,41900.0,0.00341893]
[1641913908682,0.00127439,41901.0,41900.0,0.00341893]
[1641913908881,1.24517439,41901.0,41900.0,0.00341893]
[1641913909081,2.05306277,41901.0,41900.0,0.00341893]
[1641913909331,2.47703952,41901.0,41900.0,0.00341893]
[1641913909530,2.47703952,41901.0,41896.0,0.059703]
[1641913909730,0.0597,41899.0,41896.0,0.059703]
[1641913909930,0.41121102,41898.0,41896.0,0.059703]
[1641913910132,0.34517494,41897.0,41896.0,0.059703]
[1641913910334,0.38907494,41897.0,41896.0,0.059703]
[1641913910531,0.1439,41897.0,41896.0,0.059703]
[1641913910735,0.49983989,41897.0,41896.0,0.059703]
[1641913910932,0.49983989,41897.0,41896.0,0.11940163]
[1641913911332,0.0439,41897.0,41896.0,0.11940163]
[1641913912833,0.70082,41903.0,41896.0,0.059703]
[1641913913090,0.0439,41902.0,41900.0,0.059688]
[1641913913682,0.0439,41902.0,41900.0,0.35114818]
[1641913913884,0.0439,41902.0,41900.0,0.059688]
[1641913914284,0.0439,41902.0,41900.0,0.37706385]
[1641913914684,0.25082,41903.0,41900.0,0.37706385]
[1641913914689,0.20082,41903.0,41901.0,0.05]
[1641913914884,0.20082,41903.0,41902.0,0.67954297]
[1641913915083,0.60668268,41906.0,41902.0,0.67954297]
[1641913915084,0.60668268,41906.0,41903.0,0.65]
[1641913915285,0.5,41909.0,41903.0,1.32281582]
[1641913915484,0.70770333,41911.0,41903.0,1.32281582]
[1641913915485,0.70770333,41911.0,41907.0,0.32073411]
[1641913915687,0.97073124,41911.0,41903.0,0.85179882]
[1641913916285,0.97073124,41911.0,41903.0,0.31906261]
[1641913916486,0.70770333,41911.0,41907.0,0.119335]
[1641913916688,0.70770333,41911.0,41909.0,0.45570144]
[1641913916923,0.70770333,41911.0,41910.0,0.68265865]
[1641913917123,0.70770333,41911.0,41910.0,0.33265865]
[1641913917523,0.70770333,41911.0,41910.0,0.57866924]
[1641913917726,0.70770333,41911.0,41910.0,1.44224852]
[1641913917930,0.70770333,41911.0,41910.0,1.10747862]
[1641913918124,0.23040333,41911.0,41910.0,1.10747862]
[1641913918324,0.00055214,41916.0,41910.0,1.10747862]
[1641913918325,0.00055214,41916.0,41914.0,0.059663]
[1641913918526,0.00055214,41916.0,41914.0,0.119323]
[1641913919126,0.00055221,41917.0,41914.0,0.119323]
[1641913919527,0.00055221,41917.0,41914.0,0.059663]
[1641913920326,0.00057888,41918.0,41914.0,0.059663]
[1641913920583,0.00057888,41918.0,41915.0,0.0596628]
[1641913920776,0.27527704,41918.0,41915.0,0.1789878]
[1641913921578,0.27469816,41918.0,41915.0,0.1789878]
[1641913921777,0.059668,41917.0,41911.0,0.47561854]
[1641913922177,0.15057888,41919.0,41911.0,0.47561854]
[1641913922381,0.05057888,41919.0,41915.0,0.1789878]
[1641913922578,0.00057888,41919.0,41916.0,0.11932387]
[1641913922778,0.201,41920.0,41918.0,0.26099922]
[1641913922980,0.009561,41927.0,41918.0,0.26099922]
[1641913923180,0.009561,41927.0,41919.0,0.0012549]
[1641913923378,0.009561,41927.0,41920.0,0.119295]
[1641913923579,0.009561,41927.0,41922.0,0.11929528]
[1641913923781,0.009561,41927.0,41924.0,0.28345636]
[1641913923981,0.009561,41927.0,41925.0,0.27347084]
[1641913924426,0.7,41925.0,41919.0,0.00124164]
[1641913924825,0.7,41925.0,41912.0,0.0439]
[1641913925026,0.7,41925.0,41911.0,0.00122794]
[1641913925027,0.28555971,41924.0,41911.0,0.06089394]
[1641913925224,0.28555971,41924.0,41914.0,0.33247369]
[1641913925225,0.20156594,41921.0,41914.0,0.33247369]
[1641913925424,0.42307922,41920.0,41914.0,0.33247369]
[1641913925625,0.20156594,41921.0,41912.0,0.178964]
[1641913926024,0.00057371,41920.0,41916.0,0.33309221]
[1641913926228,0.00057371,41920.0,41917.0,0.39933813]
[1641913926529,0.00057371,41920.0,41919.0,0.96397764]
[1641913926825,0.60703529,41925.0,41920.0,0.45]
[1641913927024,0.60703529,41925.0,41920.0,0.5]
[1641913927225,0.60703529,41925.0,41924.0,0.28297033]
[1641913927425,0.7178217,41927.0,41925.0,1.3]
[1641913927625,0.7178217,41927.0,41926.0,0.00123294]
[1641913927826,0.009561,41927.0,41926.0,0.00123294]
[1641913928086,0.60926444,41932.0,41926.0,0.00123294]
[1641913928276,0.93052393,41932.0,41929.0,0.11927641]
[1641913928476,0.7679047,41934.0,41929.0,0.11927641]
[1641913928678,0.059644,41934.0,41929.0,0.11927641]
[1641913929079,0.9587207,41936.0,41929.0,0.05963841]
[1641913929276,0.9587207,41936.0,41927.0,0.24540221]
[1641913929277,0.9087207,41936.0,41928.0,0.40393313]
[1641913929477,0.9087207,41936.0,41935.0,1.90881679]
[1641913929677,0.6083607,41936.0,41935.0,0.90820695]
[1641913930077,0.001,41938.0,41935.0,0.90820695]
[1641913930278,0.001,41947.0,41937.0,0.00120657]
[1641913930479,0.001,41947.0,41943.0,0.00128646]
[1641913930878,0.001,41947.0,41946.0,0.00123742]
[1641913931276,0.001,41947.0,41946.0,0.32059342]
[1641913931479,0.80780643,41952.0,41946.0,0.63845689]
[1641913931681,0.80780643,41952.0,41949.0,0.059605]
[1641913931932,0.0021,41955.0,41949.0,0.059605]
[1641913931933,0.00483492,41955.0,41951.0,0.00124524]
[1641913932525,0.08188223,41964.0,41951.0,0.00124524]
[1641913932725,1.41926749,41971.0,41963.0,0.34487427]
[1641913932935,1.41926749,41971.0,41970.0,0.00123156]
[1641913933325,1.41926749,41971.0,41968.0,0.059578]
[1641913933528,0.25657728,41970.0,41968.0,0.059578]
[1641913933727,0.001,41976.0,41967.0,0.05]
[1641913933927,0.001,41976.0,41971.0,0.05958107]
[1641913933928,0.35587102,41976.0,41971.0,0.05958107]
[1641913934127,0.96942214,41973.0,41964.0,0.0596]
[1641913934329,0.35487102,41972.0,41961.0,0.119195]
[1641913934526,0.31841375,41969.0,41963.0,0.32738081]
[1641913934726,0.64415958,41969.0,41960.0,0.40926219]
[1641913934925,0.64415958,41969.0,41962.0,0.00123591]
[1641913935126,0.1,41969.0,41963.0,0.05959602]
[1641913935325,0.05,41969.0,41967.0,0.00122115]
[1641913935583,1.56052931,41972.0,41967.0,0.06080315]
[1641913935584,1.51052931,41972.0,41967.0,0.06080315]
[1641913935975,1.51052931,41972.0,41963.0,0.05]
[1641913935976,0.49709372,41972.0,41962.0,0.1191808]
[1641913936176,0.20076,41961.0,41955.0,0.53363844]
[1641913936376,0.20076,41961.0,41960.0,0.00121988]
[1641913936577,0.60604516,41971.0,41964.0,0.11917464]
[1641913936881,0.28749181,41967.0,41964.0,0.11917464]
[1641913937077,0.05,41967.0,41964.0,0.11917464]
[1641913937277,0.00065993,41969.0,41964.0,0.11917464]
[1641913937478,0.00065993,41969.0,41966.0,0.00128264]
[1641913937679,0.00065993,41969.0,41968.0,0.00125346]
[1641913938078,0.12952116,41973.0,41972.0,0.00128303]
[1641913938679,0.12952116,41973.0,41968.0,0.35739056]
[1641913938680,0.00263929,41974.0,41968.0,0.119132]
[1641913938880,0.00263929,41974.0,41965.0,0.119165]
[1641913939079,0.00263929,41974.0,41962.0,0.00124645]
[1641913939366,0.33422136,41973.0,41964.0,0.11916754]
[1641913939566,0.001,41976.0,41971.0,0.05957446]
[1641913939963,0.001,41976.0,41971.0,0.11914946]
[1641913940364,0.001,41976.0,41971.0,0.05957446]
[1641913940763,0.001,41976.0,41972.0,0.059574]
[1641913940964,0.001,41976.0,41973.0,0.33485507]
[1641913941164,0.00133917,41978.0,41975.0,0.060769]
[1641913941366,6.644e-05,41980.0,41977.0,0.95122042]
[1641913941565,6.644e-05,41980.0,41979.0,0.00123052]
[1641913941966,6.644e-05,41980.0,41973.0,0.42]
[1641913942368,6.644e-05,41980.0,41973.0,0.47]
[1641913942666,6.644e-05,41980.0,41975.0,0.05957601]
[1641913942667,0.00073693,41979.0,41975.0,0.05957601]
[1641913942868,0.00073693,41979.0,41973.0,0.42]
[1641913942869,0.33200469,41978.0,41973.0,0.42]
[1641913943083,0.05,41978.0,41969.0,0.0833723]
[1641913943278,0.00073693,41979.0,41971.0,0.00122348]
[1641913943477,0.00073693,41979.0,41975.0,0.05957657]
[1641913943678,0.004,41978.0,41975.0,0.05957657]
[1641913943878,0.00072658,41976.0,41975.0,0.11915257]
[1641913944079,0.00072658,41976.0,41975.0,0.89968381]
[1641913944279,0.00072658,41976.0,41975.0,0.60095077]
[1641913944480,0.00072658,41976.0,41975.0,0.55095077]
[1641913944880,6.644e-05,41980.0,41976.0,1.0]
[1641913945078,6.644e-05,41980.0,41978.0,0.33750182]
[1641913945278,6.644e-05,41980.0,41978.0,0.11912119]
[1641913945478,6.644e-05,41980.0,41979.0,0.00128614]
[1641913945678,0.00406644,41980.0,41979.0,0.00128614]
[1641913946079,0.00406644,41980.0,41978.0,0.11912119]
[1641913946279,0.3470272,41980.0,41978.0,0.11912119]
[1641913946479,0.00406644,41980.0,41978.0,0.11912119]
[1641913946681,0.05406644,41980.0,41978.0,0.11912119]
[1641913946926,6.644e-05,41980.0,41977.0,0.04737815]
[1641913947527,0.27301135,41980.0,41977.0,0.04737815]
[1641913947731,0.27301135,41980.0,41978.0,0.059561]
[1641913948031,0.27301135,41980.0,41969.0,0.39556982]
[1641913948032,0.059586,41974.0,41967.0,0.17911058]
[1641913948330,0.0439,41973.0,41967.0,0.00039558]
[1641913948529,0.29170286,41969.0,41967.0,0.00039558]
[1641913948729,1.12724737,41968.0,41967.0,0.00039558]
[1641913949029,0.92724737,41968.0,41967.0,0.00039558]
[1641913949228,0.1,41968.0,41967.0,0.00039558]
[1641913949629,0.101,41968.0,41967.0,0.00039558]
[1641913950028,0.37386555,41968.0,41965.0,0.00076745]
[1641913950229,0.33392303,41966.0,41965.0,0.00076745]
[1641913950690,1.13392303,41966.0,41965.0,0.00076745]
[1641913950893,1.58515394,41966.0,41965.0,0.00076745]
[1641913951089,0.43392303,41966.0,41965.0,0.00076745]
[1641913951296,0.43392303,41966.0,41963.0,0.00080945]
[1641913951297,0.92775375,41966.0,41963.0,0.00080945]
[1641913951689,2.7332657,41965.0,41963.0,0.00080945]
[1641913951889,1.55692545,41964.0,41963.0,0.00080945]
[1641913952089,1.70082545,41964.0,41963.0,0.00080945]
[1641913952289,0.75,41963.0,41962.0,0.00080946]
[1641913952492,1.47669787,41963.0,41962.0,0.00080946]
[1641913952690,1.57669787,41963.0,41962.0,0.00080946]
[1641913952888,1.67659787,41963.0,41962.0,0.00080946]
[1641913953498,1.67659787,41963.0,41949.0,0.059615]
[1641913953692,0.059611,41957.0,41946.0,0.119223]
[1641913953891,0.33384262,41949.0,41944.0,0.00129147]
[1641913954092,0.1,41949.0,41943.0,0.42]
[1641913954531,0.0439,41948.0,41943.0,0.42]
[1641913954733,0.71567624,41947.0,41944.0,0.00068674]
[1641913954931,0.71567624,41947.0,41943.0,0.42]
[1641913954932,0.37578359,41945.0,41942.0,0.119236]
[1641913955134,0.70341485,41945.0,41942.0,0.119236]
[1641913955631,0.42678359,41945.0,41942.0,0.119236]
[1641913955932,0.051,41945.0,41942.0,0.119236]